fUSD/lending_fUSD_20240115
["ID","MTS","AMOUNT","RATE_DAILY","PERIOD"]
[311691104,1705336252132,-901.15,0.00032876,2]
[311691105,1705336252142,-500.0,0.00032876,2]
[311691106,1705336252151,-346.85604785,0.00032876,2]
[311691107,1705336252161,-500.0,0.00032876,2]
[311691108,1705336252170,-500.0,0.00032876,2]
[311691109,1705336252179,-500.0,0.00032876,2]
[311691110,1705336252188,-820.78,0.00032876,2]
[311691111,1705336252197,-500.0,0.00032876,2]
[311691112,1705336252206,-502.92,0.00032876,2]
[311691113,1705336252215,-500.0,0.00032876,2]
[311691114,1705336252224,-500.0,0.00032876,2]
[311691115,1705336252233,-659.55,0.00032876,2]
[311691116,1705336252242,-500.0,0.00032876,2]
[311691117,1705336252251,-500.0,0.00032876,2]
[311691118,1705336252262,-500.0,0.00032876,2]
[311691119,1705336252271,-500.0,0.00032876,2]
[311691120,1705336252280,-750.12,0.00032876,2]
[311691121,1705336252289,-500.0,0.00032876,2]
[311691122,1705336252298,-500.0,0.00032876,2]
[311691123,1705336252308,-500.0,0.00032876,2]
[311691124,1705336252317,-500.0,0.00032876,2]
[311691125,1705336252326,-500.0,0.00032876,2]
[311691126,1705336252335,-500.0,0.00032876,2]
[311691127,1705336252344,-500.0,0.00032876,2]
[311691128,1705336252354,-500.0,0.00032876,2]
[311691129,1705336252363,-500.0,0.00032876,2]
[311691130,1705336252373,-520.18,0.00032876,2]
[311691131,1705336252383,-500.0,0.00032876,2]
[311691132,1705336252392,-492.68479203,0.00032876,2]
[311691133,1705336252401,-500.0,0.00032876,2]
[311691134,1705336252410,-500.0,0.00032876,2]
[311691135,1705336252420,-545.26,0.00032876,2]
[311691136,1705336252430,-500.0,0.00032876,2]
[311691137,1705336252439,-500.0,0.00032876,2]
[311691138,1705336252447,-508.85168021,0.00032876,2]
[311691139,1705336252457,-500.0,0.00032876,2]
[311691140,1705336252467,-506.05938509,0.00032876,2]
[311691141,1705336252476,-500.0,0.00032876,2]
[311691142,1705336252485,-500.0,0.00032876,2]
[311691143,1705336252495,-501.98059409,0.00032876,2]
[311691144,1705336252504,-500.0,0.00032876,2]
[311691145,1705336252513,-500.0,0.00032876,2]
[311691146,1705336252522,-500.0,0.00032876,2]
[311691147,1705336252531,-1000.0,0.00032876,2]
[311691148,1705336252540,-500.0,0.00032876,2]
[311691149,1705336252550,-707.58,0.00032876,2]
[311691150,1705336252559,-500.0,0.00032876,2]
[311691151,1705336252569,-500.0,0.00032876,2]
[311691152,1705336252578,-500.0,0.00032876,2]
[311691153,1705336252587,-500.0,0.00032876,2]
[311691154,1705336252596,-567.7,0.00032876,2]
[311691155,1705336252606,-500.0,0.00032876,2]
[311691156,1705336252615,-500.0,0.00032876,30]
[311691157,1705336252624,-503.25830555,0.00032876,2]
[311691158,1705336252634,-500.0,0.00032876,2]
[311691159,1705336252643,-359.56236289,0.00032876,2]
[311691160,1705336252652,-500.0,0.00032876,2]
[311691161,1705336252661,-500.0,0.00032876,2]
[311691162,1705336252670,-500.0,0.00032876,2]
[311691163,1705336252680,-656.15,0.00032876,2]
[311691164,1705336252690,-500.0,0.00032876,2]
[311691165,1705336252699,-525.87603789,0.00032876,2]
[311691166,1705336252708,-500.0,0.00032876,2]
[311691167,1705336252717,-500.0,0.00032876,2]
[311691168,1705336252726,-503.42390978,0.00032876,2]
[311691169,1705336252735,-500.0,0.00032876,2]
[311691170,1705336252744,-531.62032605,0.00032876,2]
[311691171,1705336252753,-500.0,0.00032876,2]
[311691172,1705336252763,-776.13,0.00032876,2]
[311691173,1705336252773,-500.0,0.00032876,2]
[311691174,1705336252782,-500.0,0.00032876,2]
[311691175,1705336252792,-500.0,0.00032876,2]
[311691176,1705336252801,-500.0,0.00032876,2]
[311691177,1705336252811,-500.0,0.00032876,2]
[311691178,1705336252820,-500.0,0.00032876,2]
[311691179,1705336252830,-500.0,0.00032876,2]
[311691180,1705336252840,-500.0,0.00032876,2]
[311691181,1705336252849,-500.0,0.00032876,2]
[311691182,1705336252859,-563.13,0.00032876,2]
[311691183,1705336252869,-500.0,0.00032876,2]
[311691184,1705336252878,-834.55,0.00032876,2]
[311691185,1705336252887,-500.0,0.00032876,2]
[311691186,1705336252897,-500.0,0.00032876,2]
[311691187,1705336252907,-500.0,0.00032876,2]
[311691188,1705336252916,-500.0,0.00032876,2]
[311691189,1705336252926,-500.0,0.00032876,2]
[311691190,1705336252938,-500.0,0.00032876,2]
[311691191,1705336252950,-508.65392728,0.00032876,2]
[311691192,1705336252960,-500.0,0.00032876,2]
[311691193,1705336252969,-500.0,0.00032876,2]
[311691194,1705336252979,-500.0,0.00032876,2]
[311691195,1705336252989,-500.0,0.00032876,2]
[311691196,1705336252999,-500.0,0.00032876,2]
[311691197,1705336253009,-500.0,0.00032876,2]
[311691198,1705336253018,-500.0,0.00032876,2]
[311691199,1705336253029,-500.0,0.00032876,2]
[311691200,1705336253038,-691.94,0.00032876,2]
[311691201,1705336253048,-500.0,0.00032876,2]
[311691202,1705336253058,-500.0,0.00032876,2]
[311691203,1705336253067,-500.0,0.00032876,2]
[311691204,1705336253076,-500.0,0.00032876,2]
[311691205,1705336253086,-601.24,0.00032876,2]
[311691206,1705336253095,-500.0,0.00032876,2]
[311691207,1705336253105,-500.0,0.00032876,2]
[311691208,1705336253114,-500.0,0.00032876,2]
[311691209,1705336253123,-500.0,0.00032876,2]
[311691210,1705336253133,-500.0,0.00032876,2]
[311691211,1705336253142,-545.07707875,0.00032876,2]
[311691212,1705336253152,-751.5,0.00032876,2]
[311691213,1705336253161,-500.0,0.00032876,2]
[311691214,1705336253170,-165.41243291,0.00032876,2]
[311691215,1705336253180,-186.21968377,0.00032876,2]
[311691216,1705336253189,-500.0,0.00032876,2]
[311691217,1705336253198,-500.0,0.00032876,2]
[311691218,1705336253208,-500.0,0.00032876,2]
[311691219,1705336253218,-500.0,0.00032876,2]
[311691220,1705336253227,-500.0,0.00032876,2]
[311691221,1705336253236,-507.31276007,0.00032876,2]
[311691222,1705336253246,-539.8,0.00032876,2]
[311691223,1705336253256,-500.0,0.00032876,2]
[311691224,1705336253265,-500.0,0.00032876,2]
[311691225,1705336253274,-500.0,0.00032876,2]
[311691226,1705336253283,-500.0,0.00032876,2]
[311691227,1705336253292,-500.0,0.00032876,2]
[311691228,1705336253302,-521.77,0.00032876,2]
[311691229,1705336253311,-500.0,0.00032876,2]
[311691230,1705336253320,-500.0,0.00032876,2]
[311691231,1705336253330,-500.0,0.00032876,2]
[311691232,1705336253339,-616.39,0.00032876,2]
[311691233,1705336253348,-500.0,0.00032876,2]
[311691234,1705336253358,-500.0,0.00032876,2]
[311691235,1705336253367,-588.93,0.00032876,2]
[311691236,1705336253377,-527.47938262,0.00032876,2]
[311691237,1705336253387,-1063.93,0.00032876,2]
[311691238,1705336253396,-510.27,0.00032876,2]
[311691239,1705336253406,-500.0,0.00032876,2]
[311691240,1705336253415,-500.0,0.00032876,2]
[311691241,1705336253425,-500.0,0.00032876,2]
[311691242,1705336253435,-2073.95,0.00032876,2]
[311691243,1705336253444,-500.0,0.00032876,2]
[311691244,1705336253454,-500.0,0.00032876,2]
[311691245,1705336253463,-500.0,0.00032876,2]
[311691246,1705336253473,-500.0,0.00032876,2]
[311691247,1705336253483,-500.0,0.00032876,2]
[311691248,1705336253492,-490.05836025,0.00032876,2]
[311691249,1705336253502,-500.0,0.00032876,2]
[311691250,1705336253513,-500.0,0.00032876,2]
[311691251,1705336253522,-505.19,0.00032876,2]
[311691252,1705336253533,-500.0,0.00032876,2]
[311691253,1705336253542,-522.96,0.00032876,2]
[311691254,1705336253552,-500.0,0.00032876,2]
[311691255,1705336253562,-710.42,0.00032876,2]
[311691256,1705336253572,-500.0,0.00032876,2]
[311691257,1705336253582,-500.0,0.00032876,2]
[311691258,1705336253591,-500.0,0.00032876,2]
[311691259,1705336253601,-500.0,0.00032876,2]
[311691260,1705336253611,-526.99,0.00032876,2]
[311691261,1705336253620,-500.0,0.00032876,2]
[311691262,1705336253630,-506.89,0.00032876,2]
[311691263,1705336253640,-500.0,0.00032876,2]
[311691264,1705336253650,-500.0,0.00032876,2]
[311691265,1705336253659,-613.49,0.00032876,2]
[311691266,1705336253670,-500.0,0.00032876,2]
[311691267,1705336253679,-1036.93,0.00032876,2]
[311691268,1705336253689,-1501.1,0.00032876,2]
[311691269,1705336253700,-500.0,0.00032876,2]
[311691270,1705336253709,-500.0,0.00032876,2]
[311691271,1705336253719,-500.0,0.00032876,2]
[311691272,1705336253728,-500.0,0.00032876,2]
[311691273,1705336253737,-500.0,0.00032876,2]
[311691274,1705336253746,-505.02561498,0.00032876,2]
[311691275,1705336253756,-500.0,0.00032876,2]
[311691276,1705336253766,-500.0,0.00032876,2]
[311691277,1705336253776,-500.0,0.00032876,2]
[311691278,1705336253786,-500.0,0.00032876,2]
[311691279,1705336253795,-500.0,0.00032876,2]
[311691280,1705336253805,-500.0,0.00032876,2]
[311691281,1705336253814,-592.59,0.00032876,2]
[311691282,1705336253824,-500.0,0.00032876,2]
[311691283,1705336253834,-500.0,0.00032876,2]
[311691284,1705336253843,-500.0,0.00032876,2]
[311691285,1705336253852,-551.11331879,0.00032876,2]
[311691286,1705336253863,-500.0,0.00032876,2]
[311691287,1705336253872,-500.0,0.00032876,2]
[311691288,1705336253882,-500.0,0.00032876,2]
[311691289,1705336253891,-500.0,0.00032876,2]
[311691290,1705336253900,-500.0,0.00032876,2]
[311691291,1705336253910,-597.17633016,0.00032876,2]
[311691292,1705336253919,-1025.96,0.00032876,2]
[311691293,1705336253929,-500.0,0.00032876,2]
[311691294,1705336253938,-1085.2,0.00032876,2]
[311691295,1705336253948,-500.0,0.00032876,2]
[311691296,1705336253958,-229.84233548,0.00032876,2]
[311691298,1705336253968,-500.0,0.00032876,2]
[311691299,1705336253977,-500.0,0.00032876,2]
[311691300,1705336253986,-500.0,0.00032876,2]
[311691301,1705336253996,-500.0,0.00032876,2]
[311691302,1705336254006,-502.98599567,0.00032876,2]
[311691303,1705336254015,-500.0,0.00032876,2]
[311691304,1705336254025,-531.57,0.00032876,2]
[311691305,1705336254034,-500.0,0.00032876,2]
[311691306,1705336254043,-2270.36,0.00032876,2]
[311691307,1705336254053,-500.0,0.00032876,2]
[311691308,1705336254062,-500.0,0.00032876,2]
[311691309,1705336254071,-500.0,0.00032876,2]
[311691310,1705336254084,-629.09,0.00032876,2]
[311691312,1705336254093,-500.0,0.00032876,2]
[311691313,1705336254103,-500.0,0.00032876,2]
[311691314,1705336254112,-695.84,0.00032876,2]
[311691315,1705336254121,-500.0,0.00032876,2]
[311691316,1705336254131,-730.27,0.00032876,2]
[311691317,1705336254140,-867.48,0.00032876,2]
[311691318,1705336254150,-502.87036667,0.00032876,2]
[311691319,1705336254159,-500.0,0.00032876,2]
[311691320,1705336254169,-517.13274278,0.00032876,2]
[311691321,1705336254178,-500.0,0.00032876,2]
[311691322,1705336254188,-500.0,0.00032876,2]
[311691323,1705336254197,-500.0,0.00032876,2]
[311691324,1705336254206,-500.0,0.00032876,2]
[311691325,1705336254216,-500.0,0.00032876,2]
[311691326,1705336254225,-500.0,0.00032876,2]
[311691327,1705336254235,-500.0,0.00032876,2]
[311691328,1705336254244,-500.0,0.00032876,2]
[311691329,1705336254254,-500.0,0.00032876,2]
[311691330,1705336254263,-1613.09,0.00032876,2]
[311691331,1705336254273,-335.41976498,0.00032876,2]
[311691332,1705336254282,-500.0,0.00032876,2]
[311691333,1705336254291,-500.0,0.00032876,2]
[311691334,1705336254301,-500.0,0.00032876,2]
[311691335,1705336254310,-508.59054216,0.00032876,2]
[311691336,1705336254320,-500.0,0.00032876,2]
[311691337,1705336254329,-500.0,0.00032876,2]
[311691338,1705336254338,-500.0,0.00032876,2]
[311691339,1705336254347,-518.2702191,0.00032876,2]
[311691340,1705336254357,-500.0,0.00032876,2]
[311691341,1705336254366,-510.8262449,0.00032876,2]
[311691342,1705336254376,-500.0,0.00032876,2]
[311691343,1705336254385,-500.0,0.00032876,2]
[311691344,1705336254395,-500.0,0.00032876,2]
[311691345,1705336254405,-516.24964662,0.00032876,2]
[311691346,1705336254415,-500.0,0.00032876,2]
[311691347,1705336254425,-500.0,0.00032876,2]
[311691348,1705336254434,-500.0,0.00032876,2]
[311691349,1705336254443,-653.82,0.00032876,2]
[311691350,1705336254453,-500.0,0.00032876,2]
[311691351,1705336254462,-500.0,0.00032876,2]
[311691352,1705336254472,-1541.23,0.00032876,2]
[311691353,1705336254482,-500.0,0.00032876,2]
[311691354,1705336254491,-500.0,0.00032876,2]
[311691355,1705336254501,-504.72785573,0.00032876,2]
[311691356,1705336254510,-366.6887735,0.00032876,2]
[311691357,1705336254520,-500.0,0.00032876,2]
[311691358,1705336254530,-500.0,0.00032876,2]
[311691359,1705336254540,-500.0,0.00032876,2]
[311691360,1705336254549,-500.0,0.00032876,2]
[311691361,1705336254559,-500.0,0.00032876,2]
[311691362,1705336254569,-500.0,0.00032876,2]
[311691363,1705336254579,-616.32,0.00032876,2]
[311691364,1705336254588,-500.0,0.00032876,2]
[311691365,1705336254598,-802.92,0.00032876,2]
[311691366,1705336254607,-500.0,0.00032876,2]
[311691367,1705336254617,-500.0,0.00032876,2]
[311691368,1705336254626,-500.0,0.00032876,2]
[311691369,1705336254636,-1105.66,0.00032876,2]
[311691370,1705336254645,-500.0,0.00032876,2]
[311691371,1705336254655,-595.35,0.00032876,2]
[311691372,1705336254665,-504.2917127,0.00032876,2]
[311691373,1705336254674,-500.0,0.00032876,2]
[311691374,1705336254684,-500.0,0.00032876,2]
[311691375,1705336254696,-500.0,0.00032876,2]
[311691376,1705336254706,-500.0,0.00032876,2]
[311691377,1705336254715,-500.0,0.00032876,2]
[311691378,1705336254725,-500.0,0.00032876,2]
[311691379,1705336254734,-500.0,0.00032876,2]
[311691380,1705336254743,-500.0,0.00032876,2]
[311691381,1705336254753,-500.0,0.00032876,2]
[311691382,1705336254764,-500.0,0.00032876,2]
[311691383,1705336254774,-500.0,0.00032876,2]
[311691384,1705336254783,-1560.27,0.00032876,2]
[311691385,1705336254793,-1894.49,0.00032876,2]
[311691386,1705336254803,-500.0,0.00032876,2]
[311691387,1705336254813,-500.0,0.00032876,2]
[311691388,1705336254823,-500.0,0.00032876,2]
[311691389,1705336254833,-154.36298534,0.00032876,2]
[311691390,1705336254843,-500.0,0.00032876,2]
[311691391,1705336254852,-668.78,0.00032876,2]
[311691392,1705336254861,-607.41,0.00032876,2]
[311691393,1705336254871,-500.0,0.00032876,2]
[311691394,1705336254881,-500.0,0.00032876,2]
[311691395,1705336254892,-521.33222277,0.00032876,2]
[311691396,1705336254903,-500.0,0.00032876,2]
[311691397,1705336254913,-10000.0,0.00032876,3]
[311691398,1705336254925,-500.0,0.00032876,2]
[311691399,1705336255206,-697.97,0.00032876,2]
[311691400,1705336255217,-1573.79,0.00032876,2]
[311691401,1705336255227,-500.0,0.00032876,2]
[311691402,1705336255236,-500.0,0.00032876,2]
[311691403,1705336255245,-500.0,0.00032876,2]
[311691404,1705336255255,-502.01544633,0.00032876,2]
[311691405,1705336255267,-1538.55,0.00032876,2]
[311691406,1705336255276,-1419.21,0.00032876,2]
[311691407,1705336255286,-1197.03,0.00032876,2]
[311691408,1705336255294,-956.05,0.00032876,2]
[311691409,1705336255304,-500.0,0.00032876,2]
[311691410,1705336255312,-500.0,0.00032876,2]
[311691411,1705336255321,-1230.84,0.00032876,2]
[311691412,1705336255331,-500.0,0.00032876,2]
[311691413,1705336255339,-500.5836376,0.00032876,2]
[311691414,1705336255348,-500.0,0.00032876,2]
[311691415,1705336255358,-1911.53,0.00032876,2]
[311691416,1705336255367,-504.76703876,0.00032876,2]
[311691417,1705336255376,-500.0,0.00032876,2]
[311691418,1705336255385,-500.0,0.00032876,2]
[311691419,1705336255394,-500.0,0.00032876,2]
[311691420,1705336255404,-500.0,0.00032876,2]
[311691421,1705336255414,-500.0,0.00032876,2]
[311691422,1705336255423,-500.0,0.00032876,2]
[311691423,1705336255433,-500.0,0.00032876,2]
[311691424,1705336255442,-500.0,0.00032876,2]
[311691425,1705336255452,-508.55766921,0.00032876,2]
[311691426,1705336255461,-500.0,0.00032876,2]
[311691427,1705336255471,-860.93,0.00032876,2]
[311691428,1705336255480,-506.37,0.00032876,2]
[311691429,1705336255489,-500.0,0.00032876,2]
[311691430,1705336255499,-500.0,0.00032876,2]
[311691431,1705336255512,-1914.55,0.00032876,2]
[311691432,1705336255522,-696.49,0.00032876,2]
[311691433,1705336255531,-500.0,0.00032876,2]
[311691434,1705336255541,-500.0,0.00032876,2]
[311691435,1705336255552,-504.4535863,0.00032876,2]
[311691436,1705336255562,-646.71,0.00032876,2]
[311691437,1705336255571,-500.0,0.00032876,2]
[311691438,1705336255581,-500.0,0.00032876,2]
[311691439,1705336255591,-500.0,0.00032876,2]
[311691440,1705336255600,-1425.64,0.00032876,2]
[311691441,1705336255610,-500.0,0.00032876,2]
[311691442,1705336255619,-500.0,0.00032876,2]
[311691443,1705336255629,-500.0,0.00032876,2]
[311691444,1705336255638,-500.0,0.00032876,2]
[311691445,1705336255648,-1205.53,0.00032876,2]
[311691446,1705336255658,-808.83,0.00032876,2]
[311691447,1705336255668,-500.0,0.00032876,2]
[311691448,1705336255678,-939.05,0.00032876,2]
[311691449,1705336255689,-500.0,0.00032876,2]
[311691450,1705336255698,-500.0,0.00032876,2]
[311691451,1705336255708,-500.0,0.00032876,2]
[311691452,1705336255718,-500.0,0.00032876,2]
[311691453,1705336255727,-593.01,0.00032876,2]
[311691454,1705336255737,-832.31,0.00032876,2]
[311691455,1705336255750,-500.0,0.00032876,2]
[311691456,1705336255761,-500.0,0.00032876,2]
[311691457,1705336255771,-500.0,0.00032876,2]
[311691458,1705336255781,-500.0,0.00032876,2]
[311691459,1705336255791,-500.0,0.00032876,2]
[311691460,1705336255801,-500.0,0.00032876,2]
[311691461,1705336255810,-500.0,0.00032876,2]
[311691462,1705336255820,-1283.39,0.00032876,2]
[311691463,1705336255832,-1109.77,0.00032876,2]
[311691464,1705336255843,-222.22090272,0.00032876,2]
[311691465,1705336255853,-500.0,0.00032876,30]
[311691466,1705336255862,-500.0,0.00032876,2]
[311691467,1705336255872,-1154.31,0.00032876,2]
[311691468,1705336255882,-500.0,0.00032876,2]
[311691469,1705336255893,-500.0,0.00032876,2]
[311691470,1705336255902,-500.0,0.00032876,2]
[311691471,1705336255912,-879.45,0.00032876,2]
[311691472,1705336255922,-500.0,0.00032876,2]
[311691473,1705336255932,-606.16,0.00032876,2]
[311691474,1705336255941,-500.0,0.00032876,2]
[311691475,1705336255951,-500.0,0.00032876,2]
[311691476,1705336255961,-500.0,0.00032876,2]
[311691477,1705336255971,-500.0,0.00032876,2]
[311691478,1705336255980,-500.0,0.00032876,2]
[311691479,1705336255989,-617.97,0.00032876,2]
[311691480,1705336255999,-500.0,0.00032876,2]
[311691481,1705336256008,-500.0,0.00032876,2]
[311691482,1705336256018,-882.49,0.00032876,2]
[311691483,1705336256027,-500.0,0.00032876,2]
[311691484,1705336256037,-1898.02,0.00032876,2]
[311691485,1705336256046,-857.4,0.00032876,2]
[311691486,1705336256055,-152.76648362,0.00032876,2]
[311691487,1705336256065,-502.58873955,0.00032876,2]
[311691488,1705336256074,-500.0,0.00032876,2]
[311691489,1705336256083,-500.0,0.00032876,2]
[311691490,1705336256092,-1342.6,0.00032876,2]
[311691491,1705336256102,-500.0,0.00032876,2]
[311691492,1705336256111,-500.0,0.00032876,2]
[311691493,1705336256120,-1110.24,0.00032876,2]
[311691494,1705336256130,-500.0,0.00032876,2]
[311691495,1705336256140,-500.0,0.00032876,2]
[311691496,1705336256149,-500.0,0.00032876,2]
[311691497,1705336256158,-500.0,0.00032876,2]
[311691498,1705336256168,-764.69,0.00032876,2]
[311691499,1705336256177,-500.0,0.00032876,2]
[311691500,1705336256186,-503.71705019,0.00032876,2]
[311691501,1705336256196,-1293.96,0.00032876,2]
[311691502,1705336256205,-500.0,0.00032876,2]
[311691503,1705336256214,-1068.74,0.00032876,2]
[311691504,1705336256224,-679.58,0.00032876,2]
[311691505,1705336256233,-500.72311267,0.00032876,2]
[311691506,1705336256243,-500.0,0.00032876,2]
[311691507,1705336256252,-500.0,0.00032876,2]
[311691508,1705336256263,-500.0,0.00032876,2]
[311691509,1705336256273,-877.12,0.00032876,2]
[311691510,1705336256286,-500.0,0.00032876,2]
[311691511,1705336256295,-500.0,0.00032876,2]
[311691512,1705336256305,-500.0,0.00032876,2]
[311691513,1705336256314,-166.75314267,0.00032876,2]
[311691514,1705336256323,-500.0,0.00032876,2]
[311691515,1705336256332,-500.0,0.00032876,2]
[311691516,1705336256342,-641.03,0.00032876,2]
[311691517,1705336256351,-683.75,0.00032876,2]
[311691518,1705336256360,-500.0,0.00032876,2]
[311691519,1705336256370,-500.0,0.00032876,2]
[311691520,1705336256379,-500.0,0.00032876,2]
[311691521,1705336256388,-500.0,0.00032876,2]
[311691522,1705336256398,-500.0,0.00032876,2]
[311691523,1705336256407,-500.0,0.00032876,2]
[311691524,1705336256416,-1200.54,0.00032876,2]
[311691525,1705336256429,-1331.94,0.00032876,2]
[311691526,1705336256439,-500.0,0.00032876,2]
[311691527,1705336256450,-500.0,0.00032876,2]
[311691528,1705336256459,-500.0,0.00032876,2]
[311691529,1705336256469,-843.16,0.00032876,2]
[311691530,1705336256479,-500.0,0.00032876,2]
[311691531,1705336256489,-500.0,0.00032876,2]
[311691532,1705336256499,-701.07,0.00032876,2]
[311691533,1705336256509,-988.39,0.00032876,2]
[311691534,1705336256518,-500.0,0.00032876,2]
[311691535,1705336256528,-500.0,0.00032876,2]
[311691536,1705336256538,-500.0,0.00032876,2]
[311691537,1705336256547,-500.0,0.00032876,2]
[311691538,1705336256557,-500.0,0.00032876,2]
[311691539,1705336256567,-500.0,0.00032876,2]
[311691540,1705336256577,-501.9402149,0.00032876,2]
[311691541,1705336256587,-530.74,0.00032876,2]
[311691542,1705336256597,-1295.17,0.00032876,2]
[311691543,1705336256607,-500.0,0.00032876,2]
[311691544,1705336256617,-1211.16,0.00032876,2]
[311691545,1705336256626,-500.0,0.00032876,2]
[311691546,1705336256636,-500.0,0.00032876,2]
[311691547,1705336256646,-500.0,0.00032876,2]
[311691548,1705336256656,-500.0,0.00032876,2]
[311691549,1705336256665,-500.0,0.00032876,2]
[311691550,1705336256675,-449.15662842,0.00032876,2]
[311691551,1705336256685,-500.0,0.00032876,2]
[311691552,1705336256696,-500.0,0.00032876,2]
[311691553,1705336256706,-500.0,0.00032876,2]
[311691554,1705336256716,-500.0,0.00032876,2]
[311691555,1705336256726,-500.0,0.00032876,2]
[311691556,1705336256736,-500.0,0.00032876,2]
[311691557,1705336256746,-500.0,0.00032876,2]
[311691558,1705336256756,-500.0,0.00032876,2]
[311691559,1705336256770,-560.50756945,0.00032876,2]
[311691560,1705336256779,-500.0,0.00032876,2]
[311691561,1705336256790,-500.0,0.00032876,2]
[311691562,1705336256799,-500.0,0.00032876,2]
[311691563,1705336256809,-500.0,0.00032876,2]
[311691564,1705336256819,-500.0,0.00032876,2]
[311691565,1705336256829,-733.36,0.00032876,2]
[311691566,1705336256838,-829.03,0.00032876,2]
[311691567,1705336256848,-5000.0,0.00032876,2]
[311691568,1705336256857,-1017.61,0.00032876,2]
[311691569,1705336256867,-500.0,0.00032876,2]
[311691570,1705336256877,-500.0,0.00032876,2]
[311691571,1705336256886,-1134.83,0.00032876,2]
[311691572,1705336256896,-500.0,0.00032876,2]
[311691573,1705336256906,-500.0,0.00032876,2]
[311691574,1705336256916,-500.0,0.00032876,2]
[311691575,1705336256925,-500.0,0.00032876,2]
[311691576,1705336256934,-500.0,0.00032876,2]
[311691577,1705336256944,-506.59361829,0.00032876,2]
[311691578,1705336256953,-500.0,0.00032876,2]
[311691579,1705336256963,-500.0,0.00032876,2]
[311691580,1705336256973,-500.0,0.00032876,2]
[311691581,1705336256983,-500.0,0.00032876,2]
[311691582,1705336256993,-500.0,0.00032876,2]
[311691583,1705336257002,-712.41,0.00032876,2]
[311691584,1705336257013,-500.0,0.00032876,2]
[311691585,1705336257023,-1244.04,0.00032876,2]
[311691586,1705336257033,-500.0,0.00032876,2]
[311691587,1705336257043,-947.38,0.00032876,2]
[311691588,1705336257053,-500.0,0.00032876,2]
[311691589,1705336257062,-501.96657981,0.00032876,2]
[311691590,1705336257072,-500.0,0.00032876,2]
[311691591,1705336257085,-500.0,0.00032876,2]
[311691592,1705336257094,-500.0,0.00032876,2]
[311691593,1705336257104,-784.85,0.00032876,2]
[311691594,1705336257113,-1146.34,0.00032876,2]
[311691595,1705336257123,-500.0,0.00032876,2]
[311691596,1705336257133,-500.0,0.00032876,2]
[311691597,1705336257142,-757.49,0.00032876,2]
[311691598,1705336257152,-500.0,0.00032876,2]
[311691599,1705336257162,-500.0,0.00032876,2]
[311691600,1705336257172,-500.0,0.00032876,2]
[311691601,1705336257182,-1544.92,0.00032876,2]
[311691602,1705336257191,-673.14,0.00032876,2]
[311691603,1705336257201,-500.0,0.00032876,2]
[311691604,1705336257211,-1346.84,0.00032876,2]
[311691605,1705336257221,-500.0,0.00032876,2]